[Event "Belt and Road Women 2024"]
[Site "Yuecheng Shaoxing"]
[Date "2024.08.02"]
[Round "9.4"]
[White "Yan, Tianqi"]
[Black "Mammadzada, Gunay"]
[Result "1-0"]
[ECO "B94"]
[WhiteElo "2306"]
[BlackElo "2444"]
[Annotator "RC"]
[PlyCount "67"]
[EventDate "2024.08.01"]
[EventType "swiss"]
[EventCountry "CHN"]
[SourceTitle "playchess.com"]
[Source "ChessBase"]
[SourceQuality "1"]
[TimeControl "5400+30"]

1. e4 {[%emt 0:00:03]} c5 {[%emt 0:00:25]} 2. Nf3 {[%emt 0:00:11]} d6 {[%emt 0:00:04]} 3. d4 {[%emt 0:00:07]} cxd4 {[%emt 0:00:04]} 4. Nxd4 {[%emt 0:00:06]} Nf6 {[%emt 0:00:05]} 5. Nc3 {[%emt 0:00:06]} a6 {[%emt 0:00:02]} 6. Bg5 {[%emt 0:00:11]} Nbd7 {[%emt 0:00:07]} 7. Bc4 {[%emt 0:00:53]} Qb6 {[%emt 0:01:50]} 8. Bb3 {[%emt 0:00:21]} e6 {[%emt 0:01:12]} 9. f3 {[%emt 0:00:50]} Be7 {[%emt 0:03:16]} 10. Be3 {[%emt 0:00:32]} Nc5 {[%emt 0:03:29]} 11. g4 {[%emt 0:04:40]} Qc7 {[%emt 0:07:01]} 12. Qd2 {[%emt 0:00:37]} b5 {[%emt 0:04:41]} 13. a3 {[%emt 0:00:37]} Nxb3 {[%emt 0:05:53]} 14. cxb3 {[%emt 0:00:16]} Bb7 {[%emt 0:06:43]} 15. O-O-O {[%emt 0:09:50]} O-O {[%emt 0:17:31]} 16. Kb1 {[%emt 0:03:03]} Nd7 {[%emt 0:01:10]} 17. g5 {[%emt 0:03:57]} Nb6 {[%emt 0:00:53]} 18. Qf2 {[%emt 0:10:07]} b4 {[%emt 0:09:29]} 19. axb4 {[%emt 0:01:31]} d5 {[%emt 0:02:03]} 20. Nc2 {[%emt 0:08:17]} Nd7 {[%emt 0:04:28]} 21. exd5 {[%emt 0:01:27]} Bxd5 {[%emt 0:05:11]} 22. Nxd5 {[%emt 0:00:51]} exd5 {[%emt 0:00:01]} 23. Rxd5 {[%emt 0:00:19]} Rfc8 {[%emt 0:00:08]} 24. f4 {[%emt 0:05:06]} Qc6 {[%emt 0:04:37]} 25. Rhd1 {[%emt 0:02:12]} Rc7 {[%emt 0:00:02]} 26. Qd2 {[%emt 0:07:07]} Nf8 {[%emt 0:02:58]} 27. Bc5 {[%emt 0:03:18]} g6 {[%emt 0:00:54]} 28. f5 {[%emt 0:02:12]} gxf5 {[%emt 0:01:14]} 29. Ne3 {[%emt 0:01:25]} Ne6 {[%emt 0:07:34]} 30. Nxf5 {[%emt 0:02:19]} Nxc5 {[%emt 0:00:32]} 31. bxc5 {[%emt 0:07:42]} Qg6 {[%emt 0:01:30]} 32. Rd8+ {[%emt 0:01:14]} Bf8 {[%emt 0:00:08]} 33. Rxa8 {[%emt 0:00:09]} Qxf5+ {[%emt 0:00:04]} 34. Qc2 {[%emt 0:00:54]} 1-0

[Event "Belt and Road Women 2024"]
[Site "Yuecheng Shaoxing"]
[Date "2024.08.02"]
[Round "9.5"]
[White "Xiao, Yiyi"]
[Black "Lu, Miaoyi"]
[Result "0-1"]
[ECO "C48"]
[WhiteElo "2338"]
[BlackElo "2449"]
[Annotator "RC"]
[PlyCount "84"]
[EventDate "2024.08.01"]
[EventType "swiss"]
[EventCountry "CHN"]
[SourceTitle "playchess.com"]
[Source "ChessBase"]
[SourceQuality "1"]
[TimeControl "5400+30"]

1. e4 {[%emt 0:00:49]} e5 {[%emt 0:00:02]} 2. Nf3 {[%emt 0:00:24]} Nc6 {[%emt 0:00:01]} 3. Nc3 {[%emt 0:00:26]} Nf6 {[%emt 0:00:03]} 4. Bb5 {[%emt 0:00:17]} Nd4 {[%emt 0:00:02]} 5. O-O {[%emt 0:01:06]} Nxb5 {[%emt 0:00:03]} 6. Nxb5 {[%emt 0:00:05]} c6 {[%emt 0:00:07]} 7. Nc3 {[%emt 0:00:05]} d6 {[%emt 0:00:03]} 8. d4 {[%emt 0:00:19]} Qc7 {[%emt 0:00:02]} 9. h3 {[%emt 0:00:33]} Be7 {[%emt 0:02:14]} 10. a4 {[%emt 0:02:25]} O-O {[%emt 0:02:44]} 11. b3 {[%emt 0:05:31]} Re8 {[%emt 0:01:07]} 12. Re1 {[%emt 0:00:38]} Bd7 {[%emt 0:04:51]} 13. Bb2 {[%emt 0:01:24]} Rad8 {[%emt 0:00:43]} 14. a5 {[%emt 0:07:24]} Bc8 {[%emt 0:05:17]} 15. Qd3 {[%emt 0:13:33]} Bf8 {[%emt 0:06:59]} 16. a6 {[%emt 0:08:51]} b5 {[%emt 0:19:00]} 17. b4 {[%emt 0:12:39]} Qb6 {[%emt 0:10:56]} 18. d5 {[%emt 0:01:30]} Bxa6 {[%emt 0:10:19]} 19. dxc6 {[%emt 0:02:17]} Qxc6 {[%emt 0:01:51]} 20. Nd5 {[%emt 0:02:06]} Nxd5 {[%emt 0:04:28]} 21. exd5 {[%emt 0:00:09]} Qb6 {[%emt 0:03:44]} 22. Ng5 {[%emt 0:02:27]} g6 {[%emt 0:00:03]} 23. Ra5 {[%emt 0:01:11]} Bg7 {[%emt 0:06:57]} 24. Bc1 {[%emt 0:03:47]} h6 {[%emt 0:05:28]} 25. Be3 {[%emt 0:02:03]} Qb7 {[%emt 0:00:02]} 26. Ne4 {[%emt 0:03:17]} Qc8 {[%emt 0:05:37]} 27. Rea1 {[%emt 0:02:01]} Bb7 {[%emt 0:02:29]} 28. Rxa7 {[%emt 0:01:33]} f5 {[%emt 0:03:04]} 29. Qxb5 {[%emt 0:00:58]} Re7 {[%emt 0:00:01]} 30. Nd2 {[%emt 0:02:18]} e4 {[%emt 0:01:04]} 31. R1a2 {[%emt 0:02:29]} g5 {[%emt 0:04:24]} 32. Bb6 {[%emt 0:09:05]} Rdd7 {[%emt 0:00:06]} 33. Nb3 {[%emt 0:04:19]} Qc3 {[%emt 0:01:40]} 34. Na5 {[%emt 0:01:33]} e3 {[%emt 0:01:18]} 35. Bxe3 {[%emt 0:06:07]} Rxe3 {[%emt 0:00:02]} 36. Nxb7 {[%emt 0:01:10]} Re1+ {[%emt 0:00:02]} 37. Kh2 {[%emt 0:00:01]} Rh1+ {[%emt 0:00:20]} 38. Kxh1 {[%emt 0:00:04]} Qe1+ {[%emt 0:00:03]} 39. Kh2 {[%emt 0:00:01]} Be5+ {[%emt 0:00:06]} 40. g3 {[%emt 0:00:05]} Qxf2+ {[%emt 0:00:02]} 41. Kh1 {[%emt 0:00:03]} Qf3+ {[%emt 0:00:15]} 42. Kg1 {[%emt 0:00:03]} Bd4+ {[%emt 0:00:07]} 0-1

[Event "Belt and Road Women 2024"]
[Site "Yuecheng Shaoxing"]
[Date "2024.08.02"]
[Round "9.6"]
[White "Stefanova, Antoaneta"]
[Black "Ni, Shiqun"]
[Result "1/2-1/2"]
[ECO "D78"]
[WhiteElo "2417"]
[BlackElo "2352"]
[Annotator "RC"]
[PlyCount "108"]
[EventDate "2024.08.01"]
[EventType "swiss"]
[EventCountry "CHN"]
[SourceTitle "playchess.com"]
[Source "ChessBase"]
[SourceQuality "1"]
[TimeControl "5400+30"]

1. Nf3 {[%emt 0:01:03]} d5 {[%emt 0:00:23]} 2. g3 {[%emt 0:00:10]} g6 {[%emt 0:00:55]} 3. d4 {[%emt 0:01:29]} Nf6 {[%emt 0:00:50]} 4. Bg2 {[%emt 0:00:19]} Bg7 {[%emt 0:00:03]} 5. O-O {[%emt 0:00:10]} O-O {[%emt 0:00:07]} 6. c4 {[%emt 0:00:03]} c6 {[%emt 0:00:09]} 7. a4 {[%emt 0:00:18]} a5 {[%emt 0:00:12]} 8. cxd5 {[%emt 0:08:23]} cxd5 {[%emt 0:00:05]} 9. Qb3 {[%emt 0:01:48]} Nc6 {[%emt 0:00:11]} 10. Nc3 {[%emt 0:01:02]} Bf5 {[%emt 0:00:14]} 11. Bf4 {[%emt 0:09:09]} Nb4 {[%emt 0:03:44]} 12. Rfc1 {[%emt 0:01:00]} Rc8 {[%emt 0:13:57]} 13. h3 {[%emt 0:07:34]} h5 {[%emt 0:06:35]} 14. Nh4 {[%emt 0:05:28]} Bd7 {[%emt 0:09:19]} 15. Be5 {[%emt 0:07:20]} Bc6 {[%emt 0:04:11]} 16. Nf3 {[%emt 0:05:52]} Nd7 {[%emt 0:05:53]} 17. Bf4 {[%emt 0:04:04]} Qb6 {[%emt 0:02:01]} 18. Rd1 {[%emt 0:02:06]} Rfd8 {[%emt 0:07:11]} 19. Bf1 {[%emt 0:01:34]} e6 {[%emt 0:07:09]} 20. Rd2 {[%emt 0:04:08]} Nf6 {[%emt 0:02:04]} 21. Ne5 {[%emt 0:04:55]} Nd7 {[%emt 0:01:59]} 22. Nf3 {[%emt 0:01:18]} Nf6 {[%emt 0:00:04]} 23. Ne5 {[%emt 0:00:07]} Nd7 {[%emt 0:00:03]} 24. Nxd7 {[%emt 0:02:38]} Rxd7 {[%emt 0:02:05]} 25. e3 {[%emt 0:01:22]} Qd8 {[%emt 0:00:47]} 26. g4 {[%emt 0:01:23]} hxg4 {[%emt 0:04:21]} 27. hxg4 {[%emt 0:00:04]} Bf6 {[%emt 0:00:07]} 28. Qd1 {[%emt 0:00:56]} Kg7 {[%emt 0:01:26]} 29. Qf3 {[%emt 0:02:42]} Qe7 {[%emt 0:01:12]} 30. Qg3 {[%emt 0:03:19]} Bg5 {[%emt 0:05:46]} 31. Be5+ {[%emt 0:03:48]} f6 {[%emt 0:03:15]} 32. Bf4 {[%emt 0:00:05]} Bxf4 {[%emt 0:03:07]} 33. exf4 {[%emt 0:00:16]} Qd6 {[%emt 0:01:26]} 34. Re1 {[%emt 0:00:38]} Re7 {[%emt 0:01:08]} 35. Rde2 {[%emt 0:02:36]} Rce8 {[%emt 0:00:23]} 36. Bg2 {[%emt 0:00:32]} g5 {[%emt 0:02:39]} 37. fxg5 {[%emt 0:00:30]} Qxg3 {[%emt 0:00:03]} 38. gxf6+ {[%emt 0:00:06]} Kxf6 {[%emt 0:00:02]} 39. fxg3 {[%emt 0:00:06]} Rg7 {[%emt 0:02:03]} 40. Bf3 {[%emt 0:01:07]} Rg5 {[%emt 0:01:42]} 41. b3 {[%emt 0:02:51]} e5 {[%emt 0:01:19]} 42. dxe5+ {[%emt 0:00:19]} Rexe5 {[%emt 0:00:03]} 43. Rd1 {[%emt 0:04:23]} Rxe2 {[%emt 0:04:44]} 44. Nxe2 {[%emt 0:00:05]} Bd7 {[%emt 0:00:31]} 45. Rd4 {[%emt 0:01:34]} Ke5 {[%emt 0:00:09]} 46. Kf2 {[%emt 0:04:33]} b6 {[%emt 0:02:08]} 47. Kg2 {[%emt 0:01:03]} Be6 {[%emt 0:01:30]} 48. Rf4 {[%emt 0:01:35]} Nd3 {[%emt 0:00:09]} 49. Rd4 {[%emt 0:03:23]} Nc1 {[%emt 0:01:19]} 50. Rd1 {[%emt 0:00:03]} Nxb3 {[%emt 0:02:12]} 51. Nf4 {[%emt 0:01:40]} Nc5 {[%emt 0:00:03]} 52. Bxd5 {[%emt 0:00:34]} Bxg4 {[%emt 0:00:13]} 53. Rb1 {[%emt 0:00:27]} Nxa4 {[%emt 0:00:37]} 54. Bc6 {[%emt 0:00:15]} Nc5 {[%emt 0:00:58]} 1/2-1/2

[Event "Belt and Road Women 2024"]
[Site "Yuecheng Shaoxing"]
[Date "2024.08.02"]
[Round "9.7"]
[White "Pham, Le Thao Nguyen"]
[Black "Guo, Qi"]
[Result "0-1"]
[ECO "A08"]
[WhiteElo "2395"]
[BlackElo "2362"]
[Annotator "RC"]
[PlyCount "94"]
[EventDate "2024.08.01"]
[EventType "swiss"]
[EventCountry "CHN"]
[SourceTitle "playchess.com"]
[Source "ChessBase"]
[SourceQuality "1"]
[TimeControl "5400+30"]

1. Nf3 {[%emt 0:00:09]} d5 {[%emt 0:00:37]} 2. g3 {[%emt 0:00:34]} c5 {[%emt 0:01:33]} 3. Bg2 {[%emt 0:00:16]} Nf6 {[%emt 0:00:33]} 4. O-O {[%emt 0:00:36]} Nc6 {[%emt 0:00:15]} 5. d3 {[%emt 0:00:33]} e5 {[%emt 0:06:05]} 6. Nbd2 {[%emt 0:05:58]} Be7 {[%emt 0:01:19]} 7. e4 {[%emt 0:00:36]} O-O {[%emt 0:00:59]} 8. Re1 {[%emt 0:03:22]} d4 {[%emt 0:04:32]} 9. a4 {[%emt 0:05:07]} Be6 {[%emt 0:04:26]} 10. h3 {[%emt 0:11:34]} Nd7 {[%emt 0:10:25]} 11. b3 {[%emt 0:03:19]} a6 {[%emt 0:03:18]} 12. Nh2 {[%emt 0:00:58]} b5 {[%emt 0:01:32]} 13. f4 {[%emt 0:02:40]} f6 {[%emt 0:00:06]} 14. Bf3 {[%emt 0:10:22]} Nb6 {[%emt 0:08:15]} 15. Bg4 {[%emt 0:07:34]} Bf7 {[%emt 0:00:13]} 16. a5 {[%emt 0:04:10]} Nc8 {[%emt 0:01:22]} 17. Ndf3 {[%emt 0:02:00]} c4 {[%emt 0:04:47]} 18. Bd2 {[%emt 0:02:23]} Nd6 {[%emt 0:03:48]} 19. h4 {[%emt 0:00:49]} Nb7 {[%emt 0:01:33]} 20. fxe5 {[%emt 0:04:00]} fxe5 {[%emt 0:00:46]} 21. Ng5 {[%emt 0:03:54]} Bxg5 {[%emt 0:00:44]} 22. hxg5 {[%emt 0:00:50]} Nbxa5 {[%emt 0:07:04]} 23. Rb1 {[%emt 0:03:14]} c3 {[%emt 0:06:08]} 24. Bc1 {[%emt 0:00:26]} b4 {[%emt 0:00:19]} 25. Nf3 {[%emt 0:08:37]} g6 {[%emt 0:01:24]} 26. Kg2 {[%emt 0:03:07]} Nb7 {[%emt 0:01:38]} 27. Rh1 {[%emt 0:00:24]} Nc5 {[%emt 0:00:19]} 28. Rh6 {[%emt 0:03:18]} Be6 {[%emt 0:07:47]} 29. Nh4 {[%emt 0:02:56]} Ra7 {[%emt 0:03:34]} 30. Nxg6 {[%emt 0:02:50]} hxg6 {[%emt 0:00:47]} 31. Bxe6+ {[%emt 0:00:06]} Nxe6 {[%emt 0:00:05]} 32. Rxg6+ {[%emt 0:00:05]} Kf7 {[%emt 0:02:50]} 33. Qh5 {[%emt 0:00:38]} Ke7 {[%emt 0:00:05]} 34. Rh6 {[%emt 0:00:42]} Kd6 {[%emt 0:00:36]} 35. Qg4 {[%emt 0:04:21]} Qe8 {[%emt 0:00:26]} 36. g6 {[%emt 0:01:28]} Rg7 {[%emt 0:00:06]} 37. Ra1 {[%emt 0:01:40]} a5 {[%emt 0:00:04]} 38. Qh5 {[%emt 0:00:37]} Rf6 {[%emt 0:00:40]} 39. Bg5 {[%emt 0:02:36]} Nxg5 {[%emt 0:03:35]} 40. Qxg5 {[%emt 0:00:32]} Rfxg6 {[%emt 0:00:11]} 41. Rf1 {[%emt 0:00:36]} Kc5 {[%emt 0:00:05]} 42. Qh4 {[%emt 0:00:55]} Rxh6 {[%emt 0:00:49]} 43. Qxh6 {[%emt 0:00:04]} Qg6 {[%emt 0:00:04]} 44. Qh2 {[%emt 0:00:27]} Rh7 {[%emt 0:00:29]} 45. Qg1 {[%emt 0:00:08]} Qg4 {[%emt 0:00:17]} 46. Rf5 {[%emt 0:00:44]} Qh3+ {[%emt 0:00:21]} 47. Kf3 {[%emt 0:00:14]} Qh1+ {[%emt 0:00:10]} 0-1

[Event "Belt and Road Women 2024"]
[Site "Yuecheng Shaoxing"]
[Date "2024.08.02"]
[Round "9.8"]
[White "Kurmangaliyeva, Liya"]
[Black "Velpula Sarayu"]
[Result "1-0"]
[ECO "B92"]
[WhiteElo "2282"]
[BlackElo "2384"]
[Annotator "RC"]
[PlyCount "79"]
[EventDate "2024.08.01"]
[EventType "swiss"]
[EventCountry "CHN"]
[SourceTitle "playchess.com"]
[Source "ChessBase"]
[SourceQuality "1"]
[TimeControl "5400+30"]

1. e4 {[%emt 0:00:11]} c5 {[%emt 0:00:27]} 2. Nf3 {[%emt 0:00:17]} d6 {[%emt 0:00:28]} 3. d4 {[%emt 0:00:11]} cxd4 {[%emt 0:00:32]} 4. Nxd4 {[%emt 0:00:04]} Nf6 {[%emt 0:00:27]} 5. Nc3 {[%emt 0:00:11]} a6 {[%emt 0:00:31]} 6. Be2 {[%emt 0:00:10]} e5 {[%emt 0:00:31]} 7. Nb3 {[%emt 0:00:22]} Be7 {[%emt 0:00:29]} 8. Qd3 {[%emt 0:00:24]} Be6 {[%emt 0:02:31]} 9. Nd5 {[%emt 0:00:29]} Nbd7 {[%emt 0:03:27]} 10. c4 {[%emt 0:01:38]} O-O {[%emt 0:02:37]} 11. Bd2 {[%emt 0:02:08]} Nc5 {[%emt 0:07:20]} 12. Nxc5 {[%emt 0:12:40]} dxc5 {[%emt 0:00:14]} 13. Bc3 {[%emt 0:08:40]} Bxd5 {[%emt 0:13:00]} 14. exd5 {[%emt 0:02:07]} Bd6 {[%emt 0:12:49]} 15. O-O {[%emt 0:01:25]} Qc7 {[%emt 0:00:54]} 16. Qh3 {[%emt 0:17:40]} g6 {[%emt 0:07:02]} 17. Bd3 {[%emt 0:11:54]} Nh5 {[%emt 0:02:34]} 18. g3 {[%emt 0:00:19]} f5 {[%emt 0:00:30]} 19. f3 {[%emt 0:01:22]} b5 {[%emt 0:04:20]} 20. Rae1 {[%emt 0:02:35]} b4 {[%emt 0:13:12]} 21. Bd2 {[%emt 0:00:07]} Qg7 {[%emt 0:00:11]} 22. Kh1 {[%emt 0:15:33]} Rae8 {[%emt 0:00:36]} 23. Bc1 {[%emt 0:01:04]} e4 {[%emt 0:09:53]} 24. fxe4 {[%emt 0:01:21]} Qd4 {[%emt 0:00:57]} 25. Rd1 {[%emt 0:07:24]} fxe4 {[%emt 0:07:36]} 26. Rxf8+ {[%emt 0:01:21]} Bxf8 {[%emt 0:01:15]} 27. Be2 {[%emt 0:00:12]} Qe5 {[%emt 0:00:15]} 28. Bxh5 {[%emt 0:03:54]} gxh5 {[%emt 0:00:01]} 29. Bf4 {[%emt 0:01:59]} Qxb2 {[%emt 0:01:21]} 30. Qxh5 {[%emt 0:00:38]} Qf2 {[%emt 0:00:10]} 31. Qxe8 {[%emt 0:01:34]} Qf3+ {[%emt 0:00:02]} 32. Kg1 {[%emt 0:00:03]} Qxd1+ {[%emt 0:00:29]} 33. Kg2 {[%emt 0:00:06]} Qf3+ {[%emt 0:00:38]} 34. Kh3 {[%emt 0:01:13]} h5 {[%emt 0:00:42]} 35. Qe6+ {[%emt 0:00:39]} Kh7 {[%emt 0:00:05]} 36. d6 {[%emt 0:01:53]} Bg7 {[%emt 0:07:36]} 37. d7 {[%emt 0:01:34]} Qd3 {[%emt 0:00:05]} 38. Bg5 {[%emt 0:01:25]} Qf1+ {[%emt 0:00:12]} 39. Kh4 {[%emt 0:00:04]} Qe2 {[%emt 0:00:19]} 40. Qf5+ {[%emt 0:00:17]} 1-0

[Event "Belt and Road Women 2024"]
[Site "Yuecheng Shaoxing"]
[Date "2024.08.02"]
[Round "9.9"]
[White "Wang, Qinxuanyi"]
[Black "Zhang, Xiao"]
[Result "0-1"]
[ECO "D37"]
[WhiteElo "2149"]
[BlackElo "2193"]
[Annotator "RC"]
[PlyCount "76"]
[EventDate "2024.08.01"]
[EventType "swiss"]
[EventCountry "CHN"]
[SourceTitle "playchess.com"]
[Source "ChessBase"]
[SourceQuality "1"]
[TimeControl "5400+30"]

1. d4 {[%emt 0:00:03]} Nf6 {[%emt 0:00:06]} 2. c4 {[%emt 0:00:05]} e6 {[%emt 0:00:05]} 3. Nf3 {[%emt 0:00:04]} d5 {[%emt 0:00:08]} 4. Nc3 {[%emt 0:00:04]} a6 {[%emt 0:00:52]} 5. cxd5 {[%emt 0:00:26]} exd5 {[%emt 0:00:04]} 6. Bg5 {[%emt 0:00:03]} Be6 {[%emt 0:00:07]} 7. e3 {[%emt 0:03:38]} Nbd7 {[%emt 0:00:05]} 8. Bd3 {[%emt 0:00:27]} Bd6 {[%emt 0:00:07]} 9. O-O {[%emt 0:01:29]} O-O {[%emt 0:00:06]} 10. a3 {[%emt 0:01:06]} h6 {[%emt 0:02:04]} 11. Bh4 {[%emt 0:01:27]} c6 {[%emt 0:00:35]} 12. Rc1 {[%emt 0:03:08]} Qc7 {[%emt 0:01:27]} 13. Bg3 {[%emt 0:06:16]} Rac8 {[%emt 0:04:23]} 14. Qc2 {[%emt 0:02:39]} Bg4 {[%emt 0:03:52]} 15. Nd2 {[%emt 0:03:11]} Bxg3 {[%emt 0:04:15]} 16. hxg3 {[%emt 0:00:08]} Rfe8 {[%emt 0:00:30]} 17. Na4 {[%emt 0:04:50]} h5 {[%emt 0:06:33]} 18. Rfe1 {[%emt 0:04:52]} Rcd8 {[%emt 0:10:41]} 19. b4 {[%emt 0:02:48]} g6 {[%emt 0:09:02]} 20. Nf1 {[%emt 0:03:43]} Kg7 {[%emt 0:00:46]} 21. Nc3 {[%emt 0:04:27]} Rh8 {[%emt 0:02:44]} 22. Ne2 {[%emt 0:03:43]} Bxe2 {[%emt 0:10:44]} 23. Qxe2 {[%emt 0:01:45]} Ne4 {[%emt 0:00:56]} 24. Bxe4 {[%emt 0:11:50]} dxe4 {[%emt 0:00:03]} 25. a4 {[%emt 0:00:03]} Nf6 {[%emt 0:05:56]} 26. b5 {[%emt 0:01:38]} axb5 {[%emt 0:00:18]} 27. axb5 {[%emt 0:00:03]} Qd7 {[%emt 0:01:38]} 28. bxc6 {[%emt 0:00:15]} bxc6 {[%emt 0:00:03]} 29. Nh2 {[%emt 0:06:34]} Nd5 {[%emt 0:14:52]} 30. Rc4 {[%emt 0:05:44]} f5 {[%emt 0:01:53]} 31. Rec1 {[%emt 0:05:54]} Rc8 {[%emt 0:00:18]} 32. Nf1 {[%emt 0:02:07]} h4 {[%emt 0:01:45]} 33. gxh4 {[%emt 0:02:58]} Rxh4 {[%emt 0:00:04]} 34. Ng3 {[%emt 0:00:03]} Qd6 {[%emt 0:00:44]} 35. Qd2 {[%emt 0:02:21]} Rch8 {[%emt 0:03:09]} 36. Kf1 {[%emt 0:05:48]} f4 {[%emt 0:00:37]} 37. Nxe4 {[%emt 0:01:41]} fxe3 {[%emt 0:00:29]} 38. Nxd6 {[%emt 0:00:47]} exd2 {[%emt 0:00:03]} 0-1

[Event "Belt and Road Women 2024"]
[Site "Yuecheng Shaoxing"]
[Date "2024.08.02"]
[Round "9.10"]
[White "Ha, Yihan"]
[Black "Zhang, Lanlin"]
[Result "0-1"]
[ECO "E39"]
[WhiteElo "2166"]
[BlackElo "2161"]
[Annotator "RC"]
[PlyCount "80"]
[EventDate "2024.08.01"]
[EventType "swiss"]
[EventCountry "CHN"]
[SourceTitle "playchess.com"]
[Source "ChessBase"]
[SourceQuality "1"]
[TimeControl "5400+30"]

1. d4 {[%emt 0:00:02]} Nf6 {[%emt 0:00:05]} 2. c4 {[%emt 0:00:05]} e6 {[%emt 0:00:03]} 3. Nc3 {[%emt 0:00:11]} Bb4 {[%emt 0:00:04]} 4. Qc2 {[%emt 0:00:07]} c5 {[%emt 0:00:04]} 5. dxc5 {[%emt 0:00:24]} O-O {[%emt 0:00:04]} 6. Nf3 {[%emt 0:03:47]} Na6 {[%emt 0:00:53]} 7. g3 {[%emt 0:00:29]} Nxc5 {[%emt 0:00:07]} 8. Bg2 {[%emt 0:00:09]} Nce4 {[%emt 0:00:05]} 9. O-O {[%emt 0:00:38]} Nxc3 {[%emt 0:02:50]} 10. bxc3 {[%emt 0:00:06]} Be7 {[%emt 0:00:03]} 11. e4 {[%emt 0:02:11]} d6 {[%emt 0:01:29]} 12. e5 {[%emt 0:00:32]} dxe5 {[%emt 0:22:22]} 13. Nxe5 {[%emt 0:00:09]} Qc7 {[%emt 0:00:04]} 14. Qe2 {[%emt 0:01:14]} Ne8 {[%emt 0:03:18]} 15. Bf4 {[%emt 0:05:41]} Nd6 {[%emt 0:02:23]} 16. Rfd1 {[%emt 0:20:50]} f6 {[%emt 0:01:13]} 17. Nd3 {[%emt 0:05:33]} Qxc4 {[%emt 0:01:25]} 18. Qh5 {[%emt 0:12:08]} Nf7 {[%emt 0:06:18]} 19. Bf1 {[%emt 0:06:59]} Qc6 {[%emt 0:16:37]} 20. Rab1 {[%emt 0:01:00]} e5 {[%emt 0:05:20]} 21. Be3 {[%emt 0:03:53]} Qe4 {[%emt 0:17:20]} 22. Bg2 {[%emt 0:02:05]} Qa4 {[%emt 0:02:55]} 23. f4 {[%emt 0:07:37]} e4 {[%emt 0:03:16]} 24. Nc5 {[%emt 0:01:22]} Bxc5 {[%emt 0:00:52]} 25. Bxc5 {[%emt 0:00:25]} Re8 {[%emt 0:00:03]} 26. Bf1 {[%emt 0:07:11]} a6 {[%emt 0:02:35]} 27. Rb4 {[%emt 0:02:20]} Qc6 {[%emt 0:00:47]} 28. Bc4 {[%emt 0:02:38]} Be6 {[%emt 0:01:25]} 29. Rb6 {[%emt 0:04:27]} Qc8 {[%emt 0:01:19]} 30. Rxe6 {[%emt 0:04:03]} Rxe6 {[%emt 0:00:56]} 31. Qd5 {[%emt 0:02:17]} Kh8 {[%emt 0:07:14]} 32. Kg2 {[%emt 0:00:16]} Rc6 {[%emt 0:02:12]} 33. Qxf7 {[%emt 0:01:46]} Rxc5 {[%emt 0:00:03]} 34. Rd7 {[%emt 0:02:24]} Qf8 {[%emt 0:00:05]} 35. Qe6 {[%emt 0:00:19]} Re8 {[%emt 0:01:09]} 36. Qf7 {[%emt 0:02:14]} e3 {[%emt 0:00:19]} 37. Kf1 {[%emt 0:00:48]} b5 {[%emt 0:00:25]} 38. Be6 {[%emt 0:00:33]} Rxc3 {[%emt 0:00:18]} 39. Ke2 {[%emt 0:00:29]} Rc2+ {[%emt 0:00:23]} 40. Kd1 {[%emt 0:00:21]} e2+ {[%emt 0:00:09]} 0-1